bitfinex/quotes_SOLUSD_20250814
["timestamp","ask_amount","ask_price","bid_price","bid_amount"]
[1755162178031,0.06,203.27,203.26,15.45700152]
[1755162179033,0.06,203.27,203.26,14.78700152]
[1755162179353,0.06,203.27,203.26,9.86719438]
[1755162179549,0.06,203.27,203.24,0.67]
[1755162179550,0.06,203.27,203.24,9.86719438]
[1755162180352,0.06,203.27,203.25,9.86719438]
[1755162181561,0.06,203.27,203.26,9.86719438]
[1755162181751,0.06,203.27,203.26,10.55719438]
[1755162182135,0.06,203.27,203.26,9.86719438]
[1755162182338,0.06,203.27,203.25,9.86719438]
[1755162182637,212.78,203.26,203.17,10.55719438]
[1755162182841,9.86719438,203.24,203.18,9.86719438]
[1755162183053,35.58,203.23,203.19,9.86719438]
[1755162183459,10.54719438,203.22,203.16,9.86719438]
[1755162183645,10.54719438,203.21,203.14,9.89719438]
[1755162183842,9.86719438,203.17,203.14,0.03]
[1755162184048,9.86719438,203.15,203.14,0.03]
[1755162184355,36.26,203.15,203.14,0.03]
[1755162184658,35.58,203.15,203.14,0.03]
[1755162185455,35.58,203.15,203.14,9.89719438]
[1755162186368,35.58,203.15,203.14,14.81990777]
[1755162187461,35.58,203.15,203.14,9.89719438]
[1755162188661,46.12719438,203.15,203.14,0.03]
[1755162188863,54.65212601,203.15,203.14,0.03]
[1755162189064,54.65212601,203.15,203.11,0.03]
[1755162189361,14.79039248,203.12,203.11,0.03]
[1755162189565,14.1493502,203.12,203.11,0.03]
[1755162191060,19.0725483,203.12,203.11,0.03]
[1755162191983,14.1493502,203.12,203.11,0.03]
[1755162192273,39.14215582,203.12,203.11,9.89719438]
[1755162192971,39.14215582,203.12,203.11,14.82063488]
[1755162193147,39.14215582,203.12,203.11,15.51063488]
[1755162193343,35.54,203.12,203.11,15.51063488]
[1755162194552,35.58,203.15,203.11,15.51063488]
[1755162194864,35.58,203.15,203.14,9.86719438]
[1755162196153,35.58,203.15,203.12,5.61315284]
[1755162196366,35.58,203.15,203.14,9.86719438]
[1755162196592,35.58,203.15,203.14,10.55719438]
[1755162196884,35.58,203.15,203.14,9.86719438]
[1755162199687,36.26,203.15,203.14,9.86719438]
[1755162201459,35.58,203.15,203.14,9.86719438]
[1755162202065,36.26,203.15,203.12,35.86719438]
[1755162202266,35.58,203.15,203.14,9.86719438]
[1755162205199,36.26,203.15,203.11,35.89719438]
[1755162205500,4.92295574,203.13,203.11,0.03]
[1755162205792,36.16,203.12,203.11,0.03]
[1755162206171,46.02719438,203.12,203.11,0.03]
[1755162207893,50.95039248,203.12,203.11,0.03]
[1755162209210,15.10621557,203.1,203.09,0.03]
[1755162209367,15.10621557,203.1,203.07,0.03]
[1755162209368,41.10621557,203.08,203.07,0.03]
[1755162209567,41.10621557,203.08,202.97,9.86719438]
[1755162209568,72.02719438,203.08,202.97,9.86719438]
[1755162209767,0.68,203.07,203.01,9.86719438]
[1755162209967,35.48,203.06,203.02,9.86719438]
[1755162210192,35.48,203.06,203.03,9.86719438]
[1755162210505,36.16,203.06,203.01,9.86719438]
[1755162210882,41.08473719,203.06,203.01,10.57719438]
[1755162213405,36.16,203.06,203.02,9.86719438]
[1755162214210,35.48,203.06,203.02,9.86719438]
[1755162215686,35.48,203.06,203.01,0.71]
[1755162216027,41.08466293,203.06,203.01,0.71]
[1755162216389,41.08466293,203.06,203.02,9.86719438]
[1755162216790,0.68,203.05,203.02,9.86719438]
[1755162217088,35.42,203.04,203.02,9.86719438]
[1755162218486,35.42,203.04,203.01,9.86719438]
[1755162219086,35.42,203.04,203.01,9.89719438]
[1755162219704,212.1,203.03,203.01,9.89719438]
[1755162219908,35.4,203.02,203.01,9.89719438]
[1755162221722,35.4,203.02,203.01,0.03]
[1755162221935,35.4,203.02,203.01,9.89719438]
[1755162223403,35.4,203.02,202.96,26.2]
[1755162223404,79.57,203.0,202.96,0.2]
[1755162223731,257.97719438,202.99,202.96,0.2]
[1755162223910,35.36,202.98,202.96,0.2]
[1755162225406,35.36,202.98,202.96,0.2]
[1755162226514,40.28661016,202.98,202.96,0.2]
[1755162226813,40.96661016,202.98,202.96,0.2]
[1755162227510,35.36,202.98,202.96,0.2]
[1755162227716,0.68,202.97,202.96,0.2]
[1755162228116,10.54719438,202.97,202.96,0.2]
[1755162229407,15.47403085,202.97,202.96,0.2]
[1755162230031,35.34,202.97,202.96,0.2]
[1755162230457,40.26683647,202.97,202.96,0.2]
[1755162230658,50.81403085,202.97,202.96,0.2]
[1755162231351,40.94683647,202.97,202.96,0.2]
[1755162232256,79.4,202.95,202.93,0.2]
[1755162232557,35.42,202.94,202.93,0.2]
[1755162232765,45.96719438,202.94,202.93,0.2]
[1755162233251,26.0,202.92,202.89,0.03]
[1755162233560,79.6,202.91,202.89,0.03]
[1755162233764,35.46,202.9,202.89,0.03]
[1755162234148,0.68,202.9,202.89,0.03]
[1755162234353,35.46,202.9,202.89,0.03]
[1755162234859,79.6,202.91,202.89,0.74]
[1755162235055,35.48,202.9,202.89,0.03]
[1755162235249,35.48,202.9,202.89,9.89719438]
[1755162235444,35.48,202.9,202.89,10.60719438]
[1755162235859,35.48,202.9,202.89,15.53597352]
[1755162237555,35.48,202.9,202.89,0.03]
[1755162238738,167.98,202.9,202.89,0.03]
[1755162239056,168.66,202.9,202.89,0.03]
[1755162239454,167.98,202.9,202.89,0.03]
[1755162239854,79.57,202.89,202.83,26.0]
[1755162240055,258.07719438,202.88,202.83,26.0]
[1755162240375,212.07,202.88,202.86,9.86719438]
[1755162240541,79.57,202.88,202.87,10.55719438]
[1755162240741,115.05,202.88,202.87,10.55719438]
[1755162241675,115.05,202.88,202.85,15.10621557]
[1755162241976,115.05,202.88,202.85,9.86719438]
[1755162242144,115.05,202.88,202.85,10.55719438]
[1755162242341,115.05,202.88,202.86,0.69]
[1755162242545,115.05,202.88,202.86,10.55719438]
[1755162243771,115.05,202.88,202.86,15.48657902]
[1755162244357,115.05,202.88,202.87,10.55719438]
[1755162245782,115.05,202.88,202.85,9.86719438]
[1755162245986,212.07,202.87,202.83,0.69]
[1755162246182,115.01,202.86,202.81,10.55719438]
[1755162246484,115.01,202.86,202.82,0.69]
[1755162247001,115.01,202.86,202.83,26.0]
[1755162247277,79.57,202.86,202.85,9.86719438]
[1755162247480,115.01,202.86,202.84,0.69]
[1755162247791,115.01,202.86,202.83,26.0]
[1755162247792,115.01,202.86,202.85,15.48694542]
[1755162248141,115.01,202.86,202.85,5.61975104]
[1755162248346,115.01,202.86,202.82,0.69]
[1755162248547,115.01,202.86,202.83,4.93018172]
[1755162248748,115.01,202.86,202.83,15.4873761]
[1755162249047,79.57,202.85,202.82,0.03]
[1755162249253,35.48,202.84,202.82,5.65044119]
[1755162249466,79.57,202.83,202.82,5.65044119]
[1755162249860,79.57,202.83,202.82,35.89719438]
[1755162250752,79.57,202.83,202.82,36.58719438]
[1755162250954,79.57,202.83,202.82,26.03]
[1755162251881,35.48,202.84,202.82,0.03]
[1755162252189,36.16,202.84,202.82,0.03]
[1755162252482,0.68,202.83,202.82,0.03]
[1755162253458,10.54719438,202.83,202.82,0.03]
[1755162253952,15.47743152,202.83,202.82,0.03]
[1755162254677,35.39058281,202.83,202.82,0.03]
[1755162254974,38.98004469,202.83,202.82,0.03]
[1755162255364,41.10621557,202.81,202.8,0.2]
[1755162255579,90.70287183,202.81,202.8,0.2]
[1755162256287,45.06737959,202.81,202.8,0.2]
[1755162256457,76.95791771,202.81,202.8,0.2]
[1755162257147,72.02719438,202.81,202.8,0.2]
[1755162257589,35.48,202.81,202.8,0.2]
[1755162257810,15.10621557,202.8,202.69,0.69]
[1755162257955,9.86719438,202.77,202.7,10.55719438]
[1755162258259,45.40719438,202.76,202.7,5.62338445]
[1755162258457,45.40719438,202.76,202.7,10.55719438]
[1755162258669,35.54,202.76,202.7,10.55719438]
[1755162258874,35.54,202.76,202.7,0.69]
[1755162259065,9.86719438,202.75,202.7,5.62334322]
[1755162259266,35.56,202.74,202.7,5.62334322]
[1755162259470,35.56,202.73,202.7,0.69]
[1755162260069,35.56,202.73,202.66,0.03]
[1755162260070,9.86719438,202.71,202.66,0.03]
[1755162260273,35.54,202.7,202.66,0.72]
[1755162260653,35.54,202.7,202.67,0.69]
[1755162260857,9.86719438,202.69,202.66,0.03]
[1755162261172,35.56,202.68,202.66,0.03]
[1755162261682,35.56,202.68,202.66,0.72]
[1755162262664,35.56,202.68,202.66,0.03]
[1755162263979,0.68,202.67,202.66,0.03]
[1755162264181,35.56,202.68,202.66,0.03]
[1755162264864,36.24,202.68,202.66,0.03]
[1755162265065,46.10719438,202.68,202.66,0.03]
[1755162265388,10.54719438,202.67,202.66,0.03]
[1755162266175,26.68,202.7,202.66,0.03]
[1755162266481,9.86719438,202.67,202.66,0.03]
[1755162266670,46.08719438,202.67,202.66,0.03]
[1755162267268,35.54,202.67,202.66,0.03]
[1755162268094,26.0,202.72,202.66,0.72]
[1755162268292,9.86719438,202.7,202.66,0.72]
[1755162268498,35.52,202.69,202.66,0.72]
[1755162268877,35.52,202.69,202.67,10.55719438]
[1755162269195,0.68,202.79,202.68,10.55719438]
[1755162269377,35.54,202.78,202.73,9.86719438]
[1755162269776,35.54,202.78,202.71,0.69]
[1755162269777,46.08719438,202.78,202.72,9.86719438]
[1755162270168,45.40719438,202.78,202.73,4.93266906]
[1755162270390,45.40719438,202.78,202.71,5.62291609]
[1755162270565,45.40719438,202.78,202.71,15.49011047]
[1755162270769,45.40719438,202.78,202.72,9.86719438]
[1755162270993,45.40719438,202.78,202.71,5.62291609]
[1755162271188,45.40719438,202.78,202.71,15.49011047]
[1755162271403,45.40719438,202.78,202.72,9.86719438]
[1755162271591,45.40719438,202.78,202.71,5.62291609]
[1755162271778,45.40719438,202.78,202.72,9.86719438]
[1755162271983,45.40719438,202.78,202.71,5.62291609]
[1755162272298,45.40719438,202.78,202.72,9.86719438]
[1755162272485,35.54,202.78,202.72,14.80007711]
[1755162273103,35.54,202.78,202.73,9.86719438]
[1755162273411,35.54,202.78,202.72,4.93288273]
[1755162273412,35.54,202.78,202.76,9.86719438]
[1755162273591,35.54,202.78,202.76,0.69]
[1755162273916,35.54,202.78,202.72,5.62288273]
[1755162274105,35.54,202.78,202.73,10.55719438]
[1755162274291,35.56,202.77,202.76,9.86719438]
[1755162274602,35.56,202.77,202.74,15.48952007]
[1755162274773,35.56,202.77,202.75,10.55719438]
[1755162275173,35.56,202.77,202.76,0.69]
[1755162275597,35.56,202.77,202.76,10.55719438]
[1755162276589,35.56,202.77,202.76,15.48913361]
[1755162280489,79.6,202.81,202.76,53.8189817]
[1755162280817,0.06,202.86,202.8,9.86719438]
[1755162280980,35.5,202.85,202.82,4.93048022]
[1755162281183,35.5,202.85,202.84,35.86719438]
[1755162281582,35.5,202.85,202.84,36.55719438]
[1755162282008,1e-08,202.86,202.85,15.10621557]
[1755162282310,35.52,202.9,202.88,26.0]
[1755162282623,35.52,202.9,202.89,10.55719438]
[1755162282987,35.52,202.9,202.89,15.48597352]
[1755162284195,35.5,203.01,202.92,26.0]
[1755162284383,35.5,203.01,202.98,9.86719438]
[1755162284579,35.5,203.0,202.98,9.86719438]
[1755162284810,35.5,203.0,202.97,9.86719438]
[1755162284985,35.5,203.0,202.96,9.86719438]
[1755162285186,35.5,203.0,202.93,4.92761074]
[1755162285393,40.78614521,203.0,202.94,9.86719438]
[1755162285699,35.86,203.0,202.95,9.86719438]
[1755162286904,35.86,203.0,202.96,9.86719438]
[1755162287421,35.86,203.0,202.95,4.92720812]
[1755162287422,35.86,203.0,202.97,9.86719438]
[1755162287628,35.5,203.0,202.97,9.86719438]
[1755162288388,35.5,203.0,202.96,9.86719438]
[1755162288686,35.5,203.0,202.99,9.86719438]
[1755162289028,35.44,203.02,202.99,10.55719438]
[1755162289181,35.44,203.02,203.01,9.86719438]
[1755162289387,35.44,203.02,203.01,10.55719438]
[1755162290704,35.44,203.02,203.01,15.4830601]
[1755162291015,35.44,203.02,202.97,0.69]
[1755162291225,35.44,203.02,203.01,9.86719438]
[1755162291396,35.44,203.02,203.01,10.55719438]
[1755162292911,35.44,203.02,203.01,15.4830601]
[1755162293791,0.06,203.05,203.04,26.0]
[1755162293986,0.06,203.05,203.04,10.55719438]
[1755162294206,0.06,203.05,203.04,51.66340995]
[1755162294815,0.06,203.05,203.04,56.58854785]
[1755162295208,0.06,203.06,203.05,24.97340995]
[1755162295416,0.06,203.06,203.05,25.66340995]
[1755162297516,0.06,203.06,203.05,30.58830529]
[1755162299408,0.06,203.06,203.05,15.48208972]
[1755162299718,0.06,203.06,203.05,14.79208972]
[1755162300113,0.06,203.06,203.02,0.69]
[1755162300114,79.66,203.06,203.02,0.69]
[1755162300309,90.16719438,203.05,202.97,4.92660886]
[1755162300626,9.86719438,203.01,202.95,9.86719438]
[1755162300797,80.3,203.04,202.97,26.0]
[1755162300798,35.38,203.0,202.97,26.0]
[1755162301003,35.38,203.0,202.99,9.86719438]
[1755162301496,35.38,203.0,202.99,15.49354543]
[1755162302425,35.38,203.0,202.99,30.599761]
[1755162303027,35.4,203.03,203.02,26.0]
[1755162303225,35.4,203.03,203.02,35.86719438]
[1755162303601,35.4,203.03,203.02,40.79281747]
[1755162303803,35.4,203.03,203.02,41.49281747]
[1755162304006,79.6,203.04,203.02,41.49281747]
[1755162304228,35.46,203.06,203.05,26.0]
[1755162304404,0.06,203.06,203.05,51.67340995]
[1755162304605,0.2,203.11,203.08,15.10621557]
[1755162304902,0.06,203.14,203.11,41.10621557]
[1755162305100,35.46,203.19,203.16,26.0]
[1755162305303,35.46,203.19,203.18,9.86719438]
[1755162305535,0.06,203.22,203.19,4.92150204]
[1755162305715,0.06,203.22,203.19,14.78869642]
[1755162305912,0.06,203.22,203.19,15.48869642]
[1755162306114,0.06,203.22,203.2,15.10621557]
[1755162306304,0.06,203.27,203.26,9.86719438]
[1755162307728,0.06,203.27,203.26,36.56719438]
[1755162307911,0.06,203.27,203.26,15.48700152]
[1755162308231,0.06,203.27,203.26,30.59321709]
[1755162308419,0.06,203.28,203.27,15.10621557]
[1755162308623,0.06,203.28,203.27,25.67340995]
[1755162309324,0.06,203.28,203.27,24.97340995]
[1755162309532,0.06,203.28,203.27,25.67340995]
[1755162309711,0.06,203.28,203.27,30.59297506]
[1755162309911,0.06,203.28,203.27,25.67340995]
[1755162310130,0.06,203.3,203.29,41.10621557]
[1755162310332,0.06,203.3,203.29,51.67340995]
[1755162310535,0.06,203.32,203.3,15.10621557]
[1755162310745,0.06,203.32,203.31,24.97340995]
[1755162310917,0.06,203.32,203.31,25.67340995]
[1755162311111,0.06,203.32,203.31,9.86719438]
[1755162311315,0.06,203.32,203.31,26.0]
[1755162311536,0.76,203.32,203.29,26.0]
[1755162311832,0.06,203.32,203.29,26.0]
[1755162312035,9.86719438,203.31,203.26,0.7]
[1755162312236,0.76,203.32,203.25,41.10621557]
[1755162312237,9.86719438,203.3,203.25,41.10621557]
[1755162312536,10.56719438,203.3,203.25,15.10621557]
[1755162312836,9.86719438,203.29,203.24,15.10621557]
[1755162313005,0.7,203.29,203.27,26.0]
[1755162313209,9.86719438,203.29,203.27,26.0]
[1755162313434,35.56,203.32,203.28,26.0]
[1755162313616,9.86719438,203.29,203.21,0.7]
[1755162313822,9.86719438,203.22,203.17,0.7]
[1755162314126,9.86719438,203.21,203.16,19.23999978]
[1755162314338,0.7,203.24,203.16,15.10621557]
[1755162314339,9.86719438,203.2,203.16,15.10621557]
[1755162314528,0.7,203.27,203.19,15.10621557]
[1755162314717,35.58,203.32,203.28,26.0]
[1755162315117,35.58,203.32,203.28,36.56719438]
[1755162315641,35.58,203.32,203.28,35.86719438]
[1755162315822,35.58,203.32,203.3,26.0]
[1755162316019,36.28,203.32,203.3,26.0]
[1755162316621,35.58,203.32,203.29,26.0]
[1755162317316,35.58,203.32,203.3,26.0]
[1755162317639,46.14719438,203.32,203.3,26.0]
[1755162318043,10.56719438,203.31,203.25,14.74455]
[1755162318233,0.7,203.31,203.18,24.97340995]
[1755162318424,9.86719438,203.25,203.23,26.0]
[1755162318948,9.86719438,203.25,203.2,15.10621557]
[1755162319150,35.58,203.26,203.22,15.10621557]
[1755162319320,35.58,203.26,203.25,26.0]
[1755162319514,35.58,203.28,203.25,36.56719438]
[1755162319922,35.58,203.28,203.25,26.7]
[1755162320130,35.58,203.28,203.25,31.61994534]
[1755162320334,35.58,203.28,203.25,26.0]
[1755162320530,35.58,203.28,203.26,25.67340995]
[1755162320730,45.44719438,203.31,203.26,15.80621557]
[1755162320947,35.58,203.31,203.29,26.0]
[1755162321940,46.14719438,203.31,203.29,26.0]
[1755162322129,9.86719438,203.3,203.29,26.0]
[1755162322555,45.44719438,203.31,203.29,26.0]
[1755162322731,35.58,203.31,203.29,26.0]
[1755162322931,45.43158546,203.31,203.29,26.0]
[1755162323424,35.58,203.31,203.29,26.0]
[1755162323629,45.43158546,203.31,203.29,26.0]
[1755162324138,35.58,203.31,203.29,26.0]
[1755162324852,35.58,203.31,203.23,14.746]
[1755162324853,10.55158546,203.3,203.23,14.746]
[1755162325044,9.85158546,203.24,203.2,5.62123229]
[1755162325350,9.85158546,203.23,203.22,26.0]
[1755162325520,35.58,203.24,203.22,0.7]
[1755162325921,35.58,203.24,203.21,26.0]
[1755162326164,35.58,203.24,203.23,31.62053338]
[1755162326333,35.58,203.24,203.23,30.92053338]
[1755162326930,35.58,203.24,203.23,46.72674895]
[1755162327149,35.58,203.29,203.24,41.10621557]
[1755162327464,0.06,203.32,203.24,41.10621557]
[1755162327465,35.64,203.32,203.27,26.0]
[1755162327823,35.64,203.32,203.27,0.7]
[1755162328020,35.64,203.32,203.29,4.91908111]
[1755162328434,35.64,203.32,203.31,26.0]
[1755162328744,0.06,203.32,203.31,41.80621557]
[1755162329339,1e-08,203.32,203.31,41.80621557]
[1755162329640,0.1,203.38,203.34,41.10621557]
[1755162329956,0.1,203.38,203.37,26.0]
[1755162330155,0.1,203.38,203.37,32.10886068]
[1755162330855,0.1,203.38,203.37,47.21507625]
[1755162331035,0.06,203.39,203.38,15.10621557]
[1755162331357,0.06,203.39,203.38,15.78621557]
[1755162332331,0.06,203.39,203.38,20.70311988]
[1755162332767,1e-08,203.39,203.38,20.70311988]
[1755162333353,1e-08,203.4,203.38,20.70311988]
[1755162333556,1e-08,203.44,203.42,15.10621557]
[1755162333858,1e-08,203.44,203.43,51.89778515]
[1755162334045,1e-08,203.46,203.45,15.10621557]
[1755162334363,1e-08,203.46,203.45,20.70142815]
[1755162334662,1e-08,203.46,203.45,47.1929494]
[1755162334858,1e-08,203.46,203.45,21.1929494]
[1755162335362,0.2,203.53,203.49,41.10621557]
[1755162335530,0.2,203.53,203.52,15.10621557]
[1755162335733,0.2,203.53,203.52,41.78621557]
[1755162335967,0.2,203.53,203.52,15.78621557]
[1755162336134,0.2,203.53,203.52,41.10621557]
[1755162336335,0.2,203.53,203.52,20.69973758]
[1755162336564,0.2,203.53,203.52,46.01973758]
[1755162336764,0.2,203.53,203.52,20.01973758]
[1755162336968,0.2,203.53,203.45,4.70024252]
[1755162337157,0.2,203.53,203.51,26.0]
[1755162337459,10.52158546,203.52,203.46,15.10621557]
[1755162337631,0.2,203.53,203.44,14.730072]
[1755162337632,9.85158546,203.48,203.44,14.730072]
[1755162337838,0.67,203.52,203.45,15.78621557]
[1755162338034,0.67,203.52,203.45,15.10621557]
[1755162338239,0.67,203.52,203.45,0.68]
[1755162338461,0.67,203.52,203.49,15.10621557]
[1755162339041,0.2,203.53,203.49,15.10621557]
[1755162339236,0.2,203.53,203.52,26.0]
[1755162339556,0.2,203.53,203.52,41.10621557]
[1755162340163,0.2,203.53,203.52,41.78621557]
[1755162340468,0.2,203.53,203.52,46.69973758]
[1755162340772,0.2,203.53,203.52,61.42402558]
[1755162341568,0.2,203.53,203.52,46.01973758]
[1755162341774,0.2,203.53,203.52,41.10621557]
[1755162341950,0.2,203.53,203.52,46.69973758]
[1755162343336,0.2,203.53,203.52,46.01973758]
[1755162343533,0.2,203.53,203.52,15.10621557]
[1755162343738,0.2,203.53,203.52,20.01973758]
[1755162343939,0.2,203.53,203.52,20.69973758]
[1755162344752,0.87,203.53,203.52,15.10621557]
[1755162344959,0.87,203.53,203.49,30.9141062]
[1755162345151,0.87,203.53,203.52,26.0]
[1755162345338,0.2,203.53,203.52,26.0]
[1755162345538,0.2,203.53,203.52,41.10621557]
[1755162345941,0.87,203.53,203.5,26.0]
[1755162346157,15.10296467,203.53,203.48,15.10621557]
[1755162346355,14.90296467,203.5,203.45,15.10621557]
[1755162346668,14.90296467,203.48,203.43,14.731518]
[1755162346838,0.67,203.47,203.46,26.0]
[1755162347034,0.67,203.48,203.46,26.0]
[1755162347486,0.87,203.53,203.47,15.10621557]
[1755162347645,0.2,203.53,203.47,15.78621557]
[1755162348244,0.2,203.53,203.47,15.10621557]
[1755162348878,0.87,203.53,203.5,26.0]
[1755162349561,14.90296467,203.51,203.42,4.91593746]
[1755162349756,0.2,203.53,203.43,15.10621557]
[1755162349757,14.90296467,203.47,203.43,15.10621557]
[1755162350237,0.67,203.5,203.46,26.0]
[1755162350238,14.90296467,203.49,203.46,26.0]
[1755162350443,15.57296467,203.49,203.46,26.0]
[1755162350640,14.90296467,203.47,203.41,14.731518]
[1755162350861,5.11329672,203.53,203.41,14.731518]
[1755162350862,14.90296467,203.43,203.41,14.731518]
[1755162351061,14.90296467,203.43,203.41,40.731518]
[1755162351242,15.57296467,203.47,203.44,26.0]
[1755162351453,14.90296467,203.49,203.43,26.0]
[1755162352071,15.57296467,203.5,203.43,26.0]
[1755162352280,0.67,203.5,203.44,15.10621557]
[1755162352777,15.77296467,203.53,203.46,15.10621557]
[1755162353068,0.87,203.53,203.49,26.0]
[1755162353378,0.2,203.53,203.49,26.0]
[1755162353673,14.90296467,203.51,203.49,26.0]
[1755162353846,15.57296467,203.5,203.46,26.0]
[1755162354046,14.90296467,203.48,203.46,26.0]
[1755162354270,14.90296467,203.49,203.46,26.0]
[1755162354476,14.90296467,203.48,203.44,26.0]
[1755162354672,15.57296467,203.47,203.44,26.0]
[1755162355571,14.90296467,203.46,203.44,26.0]
[1755162355749,0.06,203.52,203.44,26.0]
[1755162355946,14.90296467,203.47,203.44,26.0]
[1755162356147,0.67,203.51,203.45,15.10621557]
[1755162356360,0.06,203.52,203.48,26.0]
[1755162356657,0.06,203.52,203.49,15.78621557]
[1755162356855,0.06,203.52,203.5,4.91400491]
[1755162357665,0.06,203.52,203.49,15.10621557]
[1755162357861,15.63296467,203.52,203.5,26.0]
[1755162358262,0.06,203.52,203.5,26.0]
[1755162359555,0.06,203.52,203.51,0.68]
[1755162359959,0.06,203.52,203.5,30.91388781]
[1755162360280,15.66296467,203.52,203.5,26.0]
[1755162360482,15.60296467,203.51,203.47,26.0]
[1755162360650,0.7,203.51,203.47,26.0]
[1755162361050,0.06,203.52,203.49,4.9142464]
[1755162361263,0.06,203.52,203.51,26.0]
[1755162361503,0.06,203.52,203.51,41.10621557]
[1755162361686,0.06,203.52,203.51,41.78621557]
[1755162363168,0.06,203.52,203.51,46.69997902]
[1755162365563,1e-08,203.52,203.51,46.69997902]
[1755162366657,0.06,203.56,203.55,41.10621557]
[1755162366885,0.06,203.56,203.55,77.64621557]
[1755162367193,0.06,203.56,203.55,82.5590134]
[1755162367486,0.06,203.56,203.55,92.3837404]
[1755162367983,35.86,203.68,203.6,15.10621557]
[1755162368182,35.86,203.68,203.64,15.10621557]
[1755162368366,9.824727,203.72,203.64,15.10621557]
[1755162368564,0.7,203.72,203.67,26.0]
[1755162368764,0.7,203.71,203.67,26.0]
[1755162368996,0.7,203.7,203.67,26.0]
[1755162369384,9.824727,203.72,203.67,26.0]
[1755162369585,10.524727,203.71,203.61,35.9]
[1755162369782,9.824727,203.7,203.64,26.0]
[1755162370083,10.524727,203.71,203.64,26.0]
[1755162370286,0.7,203.71,203.64,26.0]
[1755162370464,10.524727,203.74,203.68,26.0]
[1755162371193,0.7,203.74,203.69,4.90942117]
[1755162371366,0.7,203.73,203.69,4.90942117]
[1755162371680,36.0,203.75,203.69,30.90942117]
[1755162371888,36.0,203.75,203.7,15.10621557]
[1755162372675,0.06,203.75,203.72,15.10621557]
[1755162372985,0.06,203.75,203.74,26.0]
[1755162373159,0.06,203.75,203.74,46.01443192]
[1755162373673,0.06,203.75,203.74,46.69443192]
[1755162375880,0.38,203.88,203.82,26.0]
[1755162377073,10.204727,203.88,203.82,26.0]
[1755162377273,0.38,203.88,203.82,26.0]
[1755162378072,0.38,203.88,203.82,30.90623983]
[1755162378284,0.38,203.87,203.84,26.0]
[1755162378891,10.204727,203.87,203.84,26.0]
[1755162379195,9.824727,203.85,203.79,26.0]
[1755162379381,9.824727,203.84,203.81,26.0]
[1755162379584,0.38,203.89,203.81,26.68]
[1755162379887,0.38,203.89,203.81,26.0]
[1755162380191,0.38,203.89,203.83,41.10621557]
[1755162380598,9.824727,203.87,203.82,26.0]
[1755162380796,10.524727,203.87,203.82,26.0]
[1755162381297,9.824727,203.89,203.83,4.90604915]
[1755162381891,0.7,203.88,203.82,30.90628021]
[1755162382265,46.464727,203.91,203.83,15.10621557]
[1755162382482,36.64,203.91,203.83,15.10621557]
[1755162382690,36.64,203.91,203.86,26.0]
[1755162382882,35.94,203.91,203.86,26.0]
[1755162383078,35.94,203.91,203.86,26.68]
[1755162383274,35.94,203.91,203.86,26.0]
[1755162383695,35.94,203.91,203.86,30.9052655]
[1755162383873,35.94,203.91,203.87,0.68]
[1755162384074,0.7,203.96,203.87,0.68]